[Event "Titled Tuesday Blitz November 08 Late 2022"]
[White "Preotu, Razvan"]
[Black "Makarian, Rudik"]
[WhiteFideId "2613280"]
[BlackFideId "44105681"]
[WhiteElo "2407"]
[BlackElo "2423"]
[Result "0-1"]
[Round "09"]
[TimeControl "180+1"]
[Date "2022.11.08"]
[WhiteClock "0:00:08"]
[BlackClock "0:00:12"]

1. e4 {[%clk 0:03:00]}  d6 {[%clk 0:02:32]} 2. d4 {[%clk 0:03:00]}  Nf6 {[%clk 0:02:32]} 3. Nc3 {[%clk 0:03:01]}  e5 {[%clk 0:02:32]} 4. Nge2 {[%clk 0:02:59]}  Be7 {[%clk 0:02:32]} 5. h3 {[%clk 0:02:58]}  O-O {[%clk 0:02:32]} 6. g4 {[%clk 0:02:50]}  b5 {[%clk 0:02:23]} 7. dxe5 {[%clk 0:02:38]}  Nfd7 {[%clk 0:01:58]} 8. exd6 {[%clk 0:02:31]}  cxd6 {[%clk 0:01:59]} 9. Nxb5 {[%clk 0:02:25]}  Nc6 {[%clk 0:01:26]} 10. Nec3 {[%clk 0:02:10]}  a6 {[%clk 0:01:14]} 11. Nxd6 {[%clk 0:02:09]}  Nde5 {[%clk 0:01:10]} 12. Nxc8 {[%clk 0:01:52]}  Qxc8 {[%clk 0:01:11]} 13. Nd5 {[%clk 0:01:47]}  Bc5 {[%clk 0:01:01]} 14. Bg2 {[%clk 0:01:41]}  Nb4 {[%clk 0:00:57]} 15. O-O {[%clk 0:01:37]}  Nxd5 {[%clk 0:00:57]} 16. Qxd5 {[%clk 0:01:34]}  Re8 {[%clk 0:00:45]} 17. Bf4 {[%clk 0:01:33]}  Ng6 {[%clk 0:00:40]} 18. Bg3 {[%clk 0:01:33]}  Rd8 {[%clk 0:00:40]} 19. Qb3 {[%clk 0:01:28]}  Ra7 {[%clk 0:00:37]} 20. Rad1 {[%clk 0:01:27]}  Re8 {[%clk 0:00:36]} 21. Rd5 {[%clk 0:01:13]}  Bf8 {[%clk 0:00:27]} 22. e5 {[%clk 0:01:11]}  Rb7 {[%clk 0:00:25]} 23. Qa4 {[%clk 0:00:47]}  Rxb2 {[%clk 0:00:24]} 24. Be4 {[%clk 0:00:46]}  Rb4 {[%clk 0:00:22]} 25. Qa5 {[%clk 0:00:24]}  Rxe4 {[%clk 0:00:21]} 26. f4 {[%clk 0:00:25]}  Qxc2 {[%clk 0:00:20]} 27. Rf2 {[%clk 0:00:22]}  Qb1+ {[%clk 0:00:18]} 28. Kg2 {[%clk 0:00:23]}  Rc4 {[%clk 0:00:16]} 29. f5 {[%clk 0:00:10]}  Qe4+ {[%clk 0:00:15]} 30. Kh2 {[%clk 0:00:11]}  Ne7 {[%clk 0:00:12]} 31. Rd7 {[%clk 0:00:10]}  Nc6 {[%clk 0:00:12]} 32. Qd5 {[%clk 0:00:08]}  Qxd5 {[%clk 0:00:10]} 33. Rxd5 {[%clk 0:00:09]}  Ra4 {[%clk 0:00:11]} 34. Re2 {[%clk 0:00:07]}  Nb4 {[%clk 0:00:10]} 35. Rdd2 {[%clk 0:00:07]}  a5 {[%clk 0:00:09]} 36. e6 {[%clk 0:00:06]}  fxe6 {[%clk 0:00:09]} 37. fxe6 {[%clk 0:00:07]}  Ra3 {[%clk 0:00:09]} 38. Bh4 {[%clk 0:00:07]}  Bc5 {[%clk 0:00:07]} 39. Rd7 {[%clk 0:00:05]}  Rxa2 {[%clk 0:00:07]} 40. Rxa2 {[%clk 0:00:05]}  Nxa2 {[%clk 0:00:08]} 41. e7 {[%clk 0:00:02]}  Kf7 {[%clk 0:00:09]} 42. Rc7 {[%clk 0:00:02]}  Bxe7 {[%clk 0:00:08]} 43. Ra7 {[%clk 0:00:03]}  Nb4 {[%clk 0:00:08]} 44. Bxe7 {[%clk 0:00:03]}  Rxe7 {[%clk 0:00:09]} 45. Rxa5 {[%clk 0:00:04]}  Nc6 {[%clk 0:00:09]} 46. Rc5 {[%clk 0:00:04]}  Ne5 {[%clk 0:00:09]} 47. Kg3 {[%clk 0:00:04]}  g6 {[%clk 0:00:09]} 48. h4 {[%clk 0:00:04]}  Nd7 {[%clk 0:00:10]} 49. Rd5 {[%clk 0:00:04]}  Nf6 {[%clk 0:00:10]} 50. Rd3 {[%clk 0:00:04]}  Re4 {[%clk 0:00:10]} 51. g5 {[%clk 0:00:04]}  Nh5+ {[%clk 0:00:10]} 52. Kf3 {[%clk 0:00:03]}  Rf4+ {[%clk 0:00:10]} 53. Ke3 {[%clk 0:00:03]}  Rxh4 {[%clk 0:00:11]} 54. Rd7+ {[%clk 0:00:04]}  Kg8 {[%clk 0:00:10]} 55. Rd8+ {[%clk 0:00:04]}  Kf7 {[%clk 0:00:11]} 56. Rd7+ {[%clk 0:00:05]}  Ke6 {[%clk 0:00:11]} 57. Rxh7 {[%clk 0:00:05]}  Kf5 {[%clk 0:00:12]} 58. Kf3 {[%clk 0:00:05]}  Kxg5 {[%clk 0:00:12]} 59. Ra7 {[%clk 0:00:05]}  Rf4+ {[%clk 0:00:12]} 60. Ke3 {[%clk 0:00:06]}  Rf8 {[%clk 0:00:12]} 61. Ra5+ {[%clk 0:00:06]}  Kg4 {[%clk 0:00:12]} 62. Ra1 {[%clk 0:00:07]}  Ng3 {[%clk 0:00:12]} 63. Ra6 {[%clk 0:00:07]}  g5 {[%clk 0:00:12]} 64. Rg6 {[%clk 0:00:07]}  Rf3+ {[%clk 0:00:12]} 65. Kd2 {[%clk 0:00:07]}  Nh5 {[%clk 0:00:11]} 66. Rg8 {[%clk 0:00:07]}  Nf4 {[%clk 0:00:11]} 67. Rg7 {[%clk 0:00:07]}  Nh3 {[%clk 0:00:10]} 68. Ke2 {[%clk 0:00:07]}  Kg3 {[%clk 0:00:10]} 69. Rh7 {[%clk 0:00:07]}  g4 {[%clk 0:00:10]} 70. Rg7 {[%clk 0:00:08]}  Rf2+ {[%clk 0:00:10]} 71. Ke3 {[%clk 0:00:08]}  Rf8 {[%clk 0:00:11]} 72. Ke2 {[%clk 0:00:07]}  Ng1+ {[%clk 0:00:11]} 73. Ke1 {[%clk 0:00:07]}  Nf3+ {[%clk 0:00:11]} 74. Ke2 {[%clk 0:00:08]}  Nh2 {[%clk 0:00:12]} 75. Ke3 {[%clk 0:00:08]}  Kg2 {[%clk 0:00:12]} 76. Ke2 {[%clk 0:00:08]}  g3 {[%clk 0:00:13]} 77. Ke3 {[%clk 0:00:09]}  Nf1+ {[%clk 0:00:11]} 78. Ke2 {[%clk 0:00:09]}  Nh2 {[%clk 0:00:11]} 79. Ke3 {[%clk 0:00:09]}  Rf2 {[%clk 0:00:11]} 80. Rg8 {[%clk 0:00:09]}  Nf1+ {[%clk 0:00:12]} 81. Ke4 {[%clk 0:00:09]}  Ra2 {[%clk 0:00:12]} 82. Kf4 {[%clk 0:00:09]}  Ra3 {[%clk 0:00:11]} 83. Rg7 {[%clk 0:00:09]}  Kf2 {[%clk 0:00:12]} 84. Rb7 {[%clk 0:00:08]}  Rf3+ {[%clk 0:00:12]} 85. Ke4 {[%clk 0:00:07]}  g2 {[%clk 0:00:12]} 86. Rb2+ {[%clk 0:00:08]}  Kg3 {[%clk 0:00:12]} 87. Rb8 {[%clk 0:00:07]}  Re3+ {[%clk 0:00:11]} 88. Kd4 {[%clk 0:00:07]}  g1=Q {[%clk 0:00:12]} 89. Rg8+ {[%clk 0:00:08]}  Kf2 {[%clk 0:00:12]} 0-1


[Site "https://www.chess.com"]

[Event "Titled Tuesday Blitz November 08 Late 2022"]
[White "Przybylski, Wojciech"]
[Black "Alexikov, Alexander"]
[WhiteFideId "1117599"]
[BlackFideId "14103958"]
[WhiteElo "2221"]
[BlackElo "2222"]
[Result "1-0"]
[Round "09"]
[TimeControl "180+1"]
[Date "2022.11.09"]
[WhiteClock "0:01:01"]
[BlackClock "0:00:37"]

1. e4 {[%clk 0:02:46]}  c5 {[%clk 0:02:58]} 2. Nf3 {[%clk 0:02:45]}  d6 {[%clk 0:02:58]} 3. d4 {[%clk 0:02:44]}  cxd4 {[%clk 0:02:57]} 4. Nxd4 {[%clk 0:02:45]}  Nf6 {[%clk 0:02:56]} 5. Nc3 {[%clk 0:02:45]}  a6 {[%clk 0:02:57]} 6. Be3 {[%clk 0:02:42]}  Ng4 {[%clk 0:02:53]} 7. Bc1 {[%clk 0:02:41]}  Nf6 {[%clk 0:02:51]} 8. h3 {[%clk 0:02:42]}  Nc6 {[%clk 0:02:49]} 9. Be3 {[%clk 0:02:39]}  Bd7 {[%clk 0:02:47]} 10. Qd2 {[%clk 0:02:37]}  h5 {[%clk 0:02:45]} 11. O-O-O {[%clk 0:02:35]}  g6 {[%clk 0:02:44]} 12. f4 {[%clk 0:02:34]}  Bg7 {[%clk 0:02:42]} 13. Be2 {[%clk 0:02:31]}  Rc8 {[%clk 0:02:40]} 14. Kb1 {[%clk 0:02:31]}  Qa5 {[%clk 0:02:37]} 15. Bf3 {[%clk 0:02:27]}  h4 {[%clk 0:02:03]} 16. Rhe1 {[%clk 0:02:25]}  Nxd4 {[%clk 0:01:39]} 17. Bxd4 {[%clk 0:02:23]}  e5 {[%clk 0:01:39]} 18. fxe5 {[%clk 0:02:22]}  dxe5 {[%clk 0:01:38]} 19. Be3 {[%clk 0:02:21]}  Be6 {[%clk 0:01:36]} 20. Bg5 {[%clk 0:02:13]}  Qc5 {[%clk 0:01:19]} 21. Nd5 {[%clk 0:02:04]}  Nxd5 {[%clk 0:01:16]} 22. exd5 {[%clk 0:02:03]}  Bf5 {[%clk 0:01:16]} 23. Be4 {[%clk 0:02:00]}  Bxe4 {[%clk 0:01:10]} 24. Rxe4 {[%clk 0:01:59]}  f6 {[%clk 0:01:06]} 25. d6 {[%clk 0:01:53]}  Rd8 {[%clk 0:01:00]} 26. Be3 {[%clk 0:01:50]}  Qc6 {[%clk 0:00:56]} 27. Rb4 {[%clk 0:01:45]}  b5 {[%clk 0:00:49]} 28. Rb3 {[%clk 0:01:29]}  Bf8 {[%clk 0:00:45]} 29. Rd3 {[%clk 0:01:28]}  Rh7 {[%clk 0:00:44]} 30. Rc3 {[%clk 0:01:01]}  Qxd6 {[%clk 0:00:37]} 31. Rd3 {[%clk 0:01:01]} 1-0


[Site "https://www.chess.com"]

[Event "Titled Tuesday Blitz November 08 Late 2022"]
[White "Ramirez, Maria Eugenia"]
[Black "Ansh M Shah"]
[WhiteFideId "3301680"]
[BlackFideId "25033379"]
[WhiteElo "1941"]
[BlackElo "2084"]
[Result "1-0"]
[Round "09"]
[TimeControl "180+1"]
[Date "2022.11.09"]
[WhiteClock "0:01:34"]
[BlackClock "0:01:09"]

1. e4 {[%clk 0:03:00]}  c6 {[%clk 0:03:00]} 2. d4 {[%clk 0:02:59]}  d5 {[%clk 0:03:00]} 3. exd5 {[%clk 0:03:00]}  cxd5 {[%clk 0:03:01]} 4. c4 {[%clk 0:03:00]}  Nf6 {[%clk 0:03:01]} 5. Nc3 {[%clk 0:03:00]}  Nc6 {[%clk 0:03:02]} 6. Nf3 {[%clk 0:03:00]}  Bf5 {[%clk 0:03:02]} 7. Bg5 {[%clk 0:02:54]}  e6 {[%clk 0:03:02]} 8. cxd5 {[%clk 0:02:53]}  exd5 {[%clk 0:03:01]} 9. Bxf6 {[%clk 0:02:50]}  gxf6 {[%clk 0:02:54]} 10. Bd3 {[%clk 0:02:50]}  Be6 {[%clk 0:02:53]} 11. Qb3 {[%clk 0:02:44]}  Qb6 {[%clk 0:02:47]} 12. Qxb6 {[%clk 0:02:40]}  axb6 {[%clk 0:02:48]} 13. O-O {[%clk 0:02:37]}  Bd6 {[%clk 0:02:45]} 14. Rfe1 {[%clk 0:02:35]}  Kd7 {[%clk 0:02:45]} 15. a3 {[%clk 0:02:32]}  h6 {[%clk 0:02:37]} 16. Rac1 {[%clk 0:02:26]}  Rhc8 {[%clk 0:02:37]} 17. Ne2 {[%clk 0:02:20]}  Na5 {[%clk 0:02:35]} 18. Ng3 {[%clk 0:02:13]}  Bxg3 {[%clk 0:01:56]} 19. hxg3 {[%clk 0:02:10]}  Nb3 {[%clk 0:01:56]} 20. Rcd1 {[%clk 0:02:05]}  Kd6 {[%clk 0:01:47]} 21. Re2 {[%clk 0:01:58]}  Bg4 {[%clk 0:01:30]} 22. Bb1 {[%clk 0:01:51]}  Rc4 {[%clk 0:01:25]} 23. Ba2 {[%clk 0:01:45]}  Bxf3 {[%clk 0:01:23]} 24. gxf3 {[%clk 0:01:42]}  Rxd4 {[%clk 0:01:10]} 25. Bxb3 {[%clk 0:01:41]}  Rxd1+ {[%clk 0:01:09]} 26. Bxd1 {[%clk 0:01:41]}  Rc8 {[%clk 0:01:10]} 27. Rd2 {[%clk 0:01:40]}  Rc1 {[%clk 0:01:08]} 28. Kg2 {[%clk 0:01:39]}  Ke5 {[%clk 0:01:09]} 29. f4+ {[%clk 0:01:38]}  Ke4 {[%clk 0:01:09]} 30. Bf3+ {[%clk 0:01:37]}  Kf5 {[%clk 0:01:09]} 31. Rxd5+ {[%clk 0:01:36]}  Ke6 {[%clk 0:01:09]} 32. Rb5 {[%clk 0:01:34]} 1-0


[Site "https://www.chess.com"]

[Event "Titled Tuesday Blitz November 08 Late 2022"]
[White "Rodriguez Fontecha, Marcos"]
[Black "Bernat, David"]
[WhiteFideId "2256576"]
[BlackFideId "2099225"]
[WhiteElo "2263"]
[BlackElo "2346"]
[Result "1-0"]
[Round "09"]
[TimeControl "180+1"]
[Date "2022.11.09"]
[WhiteClock "0:00:09"]
[BlackClock "0:00:16"]

1. d4 {[%clk 0:02:55]}  Nf6 {[%clk 0:02:59]} 2. Nf3 {[%clk 0:02:55]}  d5 {[%clk 0:02:58]} 3. g3 {[%clk 0:02:55]}  g6 {[%clk 0:02:56]} 4. Bg2 {[%clk 0:02:55]}  Bg7 {[%clk 0:02:56]} 5. c4 {[%clk 0:02:55]}  O-O {[%clk 0:02:55]} 6. O-O {[%clk 0:02:55]}  c6 {[%clk 0:02:55]} 7. Nc3 {[%clk 0:02:55]}  e6 {[%clk 0:02:52]} 8. Ne5 {[%clk 0:02:55]}  Nbd7 {[%clk 0:02:52]} 9. Bf4 {[%clk 0:02:53]}  Nxe5 {[%clk 0:02:51]} 10. Bxe5 {[%clk 0:02:54]}  Nd7 {[%clk 0:02:50]} 11. Bxg7 {[%clk 0:02:53]}  Kxg7 {[%clk 0:02:51]} 12. cxd5 {[%clk 0:02:51]}  exd5 {[%clk 0:02:49]} 13. e4 {[%clk 0:02:52]}  dxe4 {[%clk 0:02:49]} 14. Nxe4 {[%clk 0:02:52]}  Nf6 {[%clk 0:02:49]} 15. Nc5 {[%clk 0:02:51]}  Nd5 {[%clk 0:02:46]} 16. Qb3 {[%clk 0:02:48]}  b6 {[%clk 0:02:41]} 17. Ne4 {[%clk 0:02:43]}  Be6 {[%clk 0:02:37]} 18. Qc2 {[%clk 0:02:34]}  Rc8 {[%clk 0:02:37]} 19. Rac1 {[%clk 0:02:29]}  Qd7 {[%clk 0:02:36]} 20. Qa4 {[%clk 0:02:29]}  h6 {[%clk 0:02:30]} 21. Rfd1 {[%clk 0:02:28]}  f5 {[%clk 0:02:24]} 22. Nd2 {[%clk 0:02:21]}  f4 {[%clk 0:02:25]} 23. Nf3 {[%clk 0:02:20]}  fxg3 {[%clk 0:02:21]} 24. hxg3 {[%clk 0:02:17]}  Qd6 {[%clk 0:02:09]} 25. Ne5 {[%clk 0:02:16]}  c5 {[%clk 0:02:04]} 26. Qxa7+ {[%clk 0:02:05]}  Rc7 {[%clk 0:02:05]} 27. Qa3 {[%clk 0:02:06]}  Rd8 {[%clk 0:01:46]} 28. Qd3 {[%clk 0:01:59]}  Bf5 {[%clk 0:01:43]} 29. Qa3 {[%clk 0:01:54]}  cxd4 {[%clk 0:01:33]} 30. Qxd6 {[%clk 0:01:10]}  Rxd6 {[%clk 0:01:34]} 31. Nc4 {[%clk 0:01:04]}  Rd8 {[%clk 0:01:13]} 32. Rxd4 {[%clk 0:00:58]}  Be6 {[%clk 0:00:27]} 33. Re1 {[%clk 0:00:52]}  Bg8 {[%clk 0:00:20]} 34. Nxb6 {[%clk 0:00:51]}  Rc5 {[%clk 0:00:09]} 35. Nxd5 {[%clk 0:00:47]}  Bxd5 {[%clk 0:00:09]} 36. Red1 {[%clk 0:00:45]}  Bxg2 {[%clk 0:00:09]} 37. Rxd8 {[%clk 0:00:43]}  Bf3 {[%clk 0:00:09]} 38. Re1 {[%clk 0:00:34]}  Rh5 {[%clk 0:00:05]} 39. Re7+ {[%clk 0:00:21]}  Kf6 {[%clk 0:00:06]} 40. Rf8+ {[%clk 0:00:22]}  Kxe7 {[%clk 0:00:05]} 41. Rxf3 {[%clk 0:00:22]}  Ra5 {[%clk 0:00:04]} 42. a3 {[%clk 0:00:21]}  Kd6 {[%clk 0:00:05]} 43. Rc3 {[%clk 0:00:21]}  h5 {[%clk 0:00:03]} 44. Kg2 {[%clk 0:00:21]}  g5 {[%clk 0:00:03]} 45. Kf3 {[%clk 0:00:21]}  Ra4 {[%clk 0:00:03]} 46. Ke3 {[%clk 0:00:21]}  h4 {[%clk 0:00:04]} 47. gxh4 {[%clk 0:00:19]}  gxh4 {[%clk 0:00:04]} 48. Kf3 {[%clk 0:00:20]}  Ke5 {[%clk 0:00:04]} 49. Kg2 {[%clk 0:00:18]}  Rd4 {[%clk 0:00:04]} 50. Rc5+ {[%clk 0:00:17]}  Kd6 {[%clk 0:00:04]} 51. Rh5 {[%clk 0:00:16]}  Rd2 {[%clk 0:00:04]} 52. Rxh4 {[%clk 0:00:15]}  Rxb2 {[%clk 0:00:05]} 53. Rc4 {[%clk 0:00:15]}  Ra2 {[%clk 0:00:04]} 54. a4 {[%clk 0:00:15]}  Kd5 {[%clk 0:00:05]} 55. Rh4 {[%clk 0:00:14]}  Ke5 {[%clk 0:00:05]} 56. Kg3 {[%clk 0:00:14]}  Ra3+ {[%clk 0:00:05]} 57. f3 {[%clk 0:00:14]}  Kf5 {[%clk 0:00:05]} 58. Rb4 {[%clk 0:00:14]}  Ke5 {[%clk 0:00:05]} 59. Rb5+ {[%clk 0:00:14]}  Kd4 {[%clk 0:00:05]} 60. a5 {[%clk 0:00:14]}  Ke3 {[%clk 0:00:02]} 61. Re5+ {[%clk 0:00:14]}  Kd4 {[%clk 0:00:03]} 62. Rf5 {[%clk 0:00:12]}  Rb3 {[%clk 0:00:01]} 63. Kg4 {[%clk 0:00:12]}  Ra3 {[%clk 0:00:02]} 64. f4 {[%clk 0:00:11]}  Ke4 {[%clk 0:00:03]} 65. Re5+ {[%clk 0:00:11]}  Kd4 {[%clk 0:00:04]} 66. Kg5 {[%clk 0:00:11]}  Ra1 {[%clk 0:00:04]} 67. Kf5 {[%clk 0:00:11]}  Ra3 {[%clk 0:00:03]} 68. Rb5 {[%clk 0:00:10]}  Kc4 {[%clk 0:00:03]} 69. Re5 {[%clk 0:00:11]}  Kd4 {[%clk 0:00:04]} 70. Kf6 {[%clk 0:00:10]}  Rf3 {[%clk 0:00:03]} 71. f5 {[%clk 0:00:10]}  Rh3 {[%clk 0:00:04]} 72. Re1 {[%clk 0:00:09]}  Rh6+ {[%clk 0:00:04]} 73. Kg5 {[%clk 0:00:09]}  Ra6 {[%clk 0:00:04]} 74. Ra1 {[%clk 0:00:09]}  Ke5 {[%clk 0:00:05]} 75. Re1+ {[%clk 0:00:09]}  Kd5 {[%clk 0:00:05]} 76. Rd1+ {[%clk 0:00:05]}  Ke5 {[%clk 0:00:04]} 77. Re1+ {[%clk 0:00:05]}  Kd5 {[%clk 0:00:04]} 78. f6 {[%clk 0:00:05]}  Rxa5 {[%clk 0:00:02]} 79. f7 {[%clk 0:00:04]}  Kd4+ {[%clk 0:00:02]} 80. Kf6 {[%clk 0:00:04]}  Ra8 {[%clk 0:00:01]} 81. Kg7 {[%clk 0:00:05]}  Ra7 {[%clk 0:00:01]} 82. Kg8 {[%clk 0:00:05]}  Rxf7 {[%clk 0:00:02]} 83. Kxf7 {[%clk 0:00:05]}  Kd5 {[%clk 0:00:03]} 84. Re6 {[%clk 0:00:05]}  Kd4 {[%clk 0:00:04]} 85. Kf6 {[%clk 0:00:06]}  Kd5 {[%clk 0:00:04]} 86. Kf5 {[%clk 0:00:06]}  Kc5 {[%clk 0:00:05]} 87. Re5+ {[%clk 0:00:06]}  Kd6 {[%clk 0:00:06]} 88. Ke4 {[%clk 0:00:06]}  Kc6 {[%clk 0:00:07]} 89. Kd4 {[%clk 0:00:06]}  Kd6 {[%clk 0:00:08]} 90. Rh5 {[%clk 0:00:06]}  Ke6 {[%clk 0:00:09]} 91. Rd5 {[%clk 0:00:06]}  Kf6 {[%clk 0:00:09]} 92. Re5 {[%clk 0:00:06]}  Kf7 {[%clk 0:00:10]} 93. Ke4 {[%clk 0:00:07]}  Kf6 {[%clk 0:00:11]} 94. Kf4 {[%clk 0:00:08]}  Kf7 {[%clk 0:00:11]} 95. Kf5 {[%clk 0:00:09]}  Kg7 {[%clk 0:00:11]} 96. Re7+ {[%clk 0:00:09]}  Kf8 {[%clk 0:00:12]} 97. Rb7 {[%clk 0:00:09]}  Ke8 {[%clk 0:00:13]} 98. Ke6 {[%clk 0:00:09]}  Kd8 {[%clk 0:00:13]} 99. Re7 {[%clk 0:00:08]}  Kc8 {[%clk 0:00:14]} 100. Rd7 {[%clk 0:00:09]}  Kb8 {[%clk 0:00:14]} 101. Kd6 {[%clk 0:00:09]}  Ka8 {[%clk 0:00:15]} 102. Kc6 {[%clk 0:00:10]}  Kb8 {[%clk 0:00:16]} 103. Rd4 {[%clk 0:00:08]}  Ka7 {[%clk 0:00:16]} 104. Ra4+ {[%clk 0:00:08]}  Kb8 {[%clk 0:00:16]} 105. Ra1 {[%clk 0:00:08]}  Kc8 {[%clk 0:00:16]} 106. Ra8# {[%clk 0:00:09]} 1-0


[Site "https://www.chess.com"]

[Event "Titled Tuesday Blitz November 08 Late 2022"]
[White "Romanchuk, Viktor"]
[Black "Veiga, Jose Francisco R P Neves"]
[WhiteFideId "14109271"]
[BlackFideId "1930087"]
[WhiteElo "2242"]
[BlackElo "2320"]
[Result "0-1"]
[Round "09"]
[TimeControl "180+1"]
[Date "2022.11.09"]
[WhiteClock "0:02:27"]
[BlackClock "0:02:23"]

1. d4 {[%clk 0:03:00]}  Nf6 {[%clk 0:02:59]} 2. c4 {[%clk 0:03:00]}  g6 {[%clk 0:02:59]} 3. Nc3 {[%clk 0:02:59]}  d5 {[%clk 0:03:00]} 4. Nf3 {[%clk 0:02:59]}  Bg7 {[%clk 0:03:00]} 5. Bf4 {[%clk 0:03:00]}  O-O {[%clk 0:03:00]} 6. Rc1 {[%clk 0:03:00]}  c5 {[%clk 0:02:48]} 7. dxc5 {[%clk 0:03:01]}  dxc4 {[%clk 0:02:47]} 8. Qxd8 {[%clk 0:02:59]}  Rxd8 {[%clk 0:02:48]} 9. e3 {[%clk 0:02:58]}  Nbd7 {[%clk 0:02:37]} 10. c6 {[%clk 0:02:57]}  bxc6 {[%clk 0:02:38]} 11. Bxc4 {[%clk 0:02:56]}  Nb6 {[%clk 0:02:38]} 12. Be2 {[%clk 0:02:55]}  Nbd5 {[%clk 0:02:37]} 13. Be5 {[%clk 0:02:55]}  Be6 {[%clk 0:02:31]} 14. Nd4 {[%clk 0:02:32]}  Nxc3 {[%clk 0:02:24]} 15. Nxe6 {[%clk 0:02:31]}  Nxe2 {[%clk 0:02:25]} 16. Nxd8 {[%clk 0:02:27]}  Nxc1 {[%clk 0:02:25]} 17. Nxc6 {[%clk 0:02:27]}  Nd3+ {[%clk 0:02:23]} 0-1


[Site "https://www.chess.com"]

[Event "Titled Tuesday Blitz November 08 Late 2022"]
[White "Salman, Pavel"]
[Black "Polster, Christian"]
[WhiteFideId "24153753"]
[BlackFideId "12965081"]
[WhiteElo "2187"]
[BlackElo "2209"]
[Result "0-1"]
[Round "09"]
[TimeControl "180+1"]
[Date "2022.11.09"]
[WhiteClock "0:02:18"]
[BlackClock "0:01:22"]

1. d4 {[%clk 0:03:00]}  Nf6 {[%clk 0:02:59]} 2. Nc3 {[%clk 0:03:00]}  d5 {[%clk 0:02:49]} 3. Bf4 {[%clk 0:02:59]}  c6 {[%clk 0:02:37]} 4. e3 {[%clk 0:02:59]}  Bf5 {[%clk 0:02:37]} 5. f3 {[%clk 0:02:58]}  h6 {[%clk 0:02:25]} 6. g4 {[%clk 0:02:59]}  Bh7 {[%clk 0:02:26]} 7. Bd3 {[%clk 0:02:59]}  Bxd3 {[%clk 0:02:22]} 8. Qxd3 {[%clk 0:03:00]}  Nbd7 {[%clk 0:02:23]} 9. e4 {[%clk 0:02:59]}  dxe4 {[%clk 0:02:14]} 10. Nxe4 {[%clk 0:03:00]}  Nxe4 {[%clk 0:02:07]} 11. fxe4 {[%clk 0:03:01]}  e5 {[%clk 0:02:02]} 12. Bxe5 {[%clk 0:02:56]}  Nxe5 {[%clk 0:02:00]} 13. dxe5 {[%clk 0:02:57]}  Qa5+ {[%clk 0:02:00]} 14. Qd2 {[%clk 0:02:49]}  Qxe5 {[%clk 0:01:52]} 15. O-O-O {[%clk 0:02:49]}  Qe6 {[%clk 0:01:33]} 16. Nf3 {[%clk 0:02:48]}  Be7 {[%clk 0:01:32]} 17. Nd4 {[%clk 0:02:49]}  Qxa2 {[%clk 0:01:29]} 18. Nb3 {[%clk 0:02:43]}  Bg5 {[%clk 0:01:27]} 19. h4 {[%clk 0:02:17]}  Bxd2+ {[%clk 0:01:25]} 20. Rxd2 {[%clk 0:02:18]}  a5 {[%clk 0:01:22]} 0-1


[Site "https://www.chess.com"]

[Event "Titled Tuesday Blitz November 08 Late 2022"]
[White "Sargsyan, Anna M."]
[Black "Moskvin, Anatoly"]
[WhiteFideId "13308130"]
[BlackFideId "24199990"]
[WhiteElo "2675"]
[BlackElo "2479"]
[Result "0-1"]
[Round "09"]
[TimeControl "180+1"]
[Date "2022.11.09"]
[WhiteClock "0:00:02"]
[BlackClock "0:00:05"]

1. d4 {[%clk 0:02:55]}  Nf6 {[%clk 0:02:59]} 2. c4 {[%clk 0:02:54]}  c5 {[%clk 0:03:00]} 3. d5 {[%clk 0:02:51]}  b5 {[%clk 0:03:00]} 4. Qc2 {[%clk 0:02:48]}  bxc4 {[%clk 0:02:59]} 5. e4 {[%clk 0:02:48]}  d6 {[%clk 0:02:58]} 6. Bxc4 {[%clk 0:02:47]}  g6 {[%clk 0:02:59]} 7. Nc3 {[%clk 0:02:47]}  Bg7 {[%clk 0:03:00]} 8. h3 {[%clk 0:02:42]}  O-O {[%clk 0:02:59]} 9. Nf3 {[%clk 0:02:43]}  Nbd7 {[%clk 0:02:58]} 10. O-O {[%clk 0:02:43]}  Nb6 {[%clk 0:02:58]} 11. Be2 {[%clk 0:02:39]}  a5 {[%clk 0:02:46]} 12. Be3 {[%clk 0:02:37]}  a4 {[%clk 0:02:42]} 13. Rac1 {[%clk 0:02:34]}  Nfd7 {[%clk 0:02:30]} 14. Rfd1 {[%clk 0:02:30]}  Ba6 {[%clk 0:02:31]} 15. Bxa6 {[%clk 0:02:18]}  Rxa6 {[%clk 0:02:31]} 16. Ne2 {[%clk 0:02:09]}  Qa8 {[%clk 0:02:26]} 17. Bd2 {[%clk 0:02:09]}  f5 {[%clk 0:02:00]} 18. Bc3 {[%clk 0:02:02]}  fxe4 {[%clk 0:01:56]} 19. Qxe4 {[%clk 0:02:03]}  e5 {[%clk 0:01:56]} 20. Qg4 {[%clk 0:01:27]}  Re8 {[%clk 0:00:47]} 21. Ng3 {[%clk 0:01:12]}  Nf6 {[%clk 0:00:47]} 22. Qh4 {[%clk 0:01:11]}  Nbxd5 {[%clk 0:00:42]} 23. Ng5 {[%clk 0:01:01]}  Nf4 {[%clk 0:00:28]} 24. f3 {[%clk 0:00:43]}  h6 {[%clk 0:00:28]} 25. N5e4 {[%clk 0:00:39]}  Nxe4 {[%clk 0:00:18]} 26. fxe4 {[%clk 0:00:39]}  Rf8 {[%clk 0:00:13]} 27. Rd2 {[%clk 0:00:29]}  h5 {[%clk 0:00:14]} 28. Nf1 {[%clk 0:00:06]}  Bf6 {[%clk 0:00:12]} 29. Qe1 {[%clk 0:00:06]}  d5 {[%clk 0:00:07]} 30. exd5 {[%clk 0:00:05]}  Nxd5 {[%clk 0:00:08]} 31. Bxe5 {[%clk 0:00:02]}  Re6 {[%clk 0:00:07]} 32. Qg3 {[%clk 0:00:02]}  Bxe5 {[%clk 0:00:07]} 33. Qg5 {[%clk 0:00:02]}  Nf4 {[%clk 0:00:05]} 0-1


[Site "https://www.chess.com"]